Cogmind - Beta 15 @@@ ROGUE MODE // 2025.05.09 @ 19:03:29 Player: Arzon Result: Destroyed by Y-54 Guardian with Flak Gun Performance ------------- Evolutions (3) 1500 Regions Visited (7) 1400 Robots Destroyed (82) 410 Value Destroyed (2575) 2575 Prototype IDs (32) 640 Alien Tech Used (0) 0 Bonus (694) 694 TOTAL SCORE: 7219 Bonus ------- High Alert Combat Kills 134 Follower Combat Kills 60 Entered Garrisons 200 Aligned with FarCom 300 Cogmind --------- Core Integrity 0/700 Matter 281/300 Energy 89/100 System Corruption 0% Temperature Warning (335) Movement Core (50) Location -7/Garrison Parts ------- > --- POWER (2) -------- (None) > --- PROPULSION (4) --- (None) > --- UTILITY (5) ------ Advanced Targeting Computer System Shield > --- WEAPON (2) ------- Advanced Beam Rifle > --- INVENTORY (5) ---- Carbon-fiber Leg Medium Storage Unit Energy Filter Graphene Brace Peak State ------------ > --- POWER ------------ Deuterium Engine Reinforced Deuterium Engine > --- PROPULSION ------- Armored Treads Medium Treads Medium Treads Medium Treads > --- UTILITY ---------- Medium Storage Unit Active Sensor Suite System Shield > --- WEAPON ----------- Advanced Beam Rifle Gatling Laser > --- INVENTORY -------- Medium Treads Improved Heat Sink Cooling System Advanced Targeting Computer Energy Filter Graphene Brace Advanced Beam Rifle Advanced Beam Rifle [Rating: 64] Favorites ----------- Power Reinforced Deuterium Engine Engine Reinforced Deuterium Engine Power Core Light Nuclear Core Propulsion Medium Treads Treads Medium Treads Leg Aluminum Leg Wheel Wheel Utility Medium Storage Unit Device Experimental Sensor Array Storage Medium Storage Unit Processor Advanced Targeting Computer Hackware System Shield Protection Light Armor Plating Weapon Gatling Laser Energy Gun Gatling Laser Energy Cannon Ion Cannon Ballistic Gun Light Assault Rifle Special Weapon Mining Laser Build | -11 -10 -10 -10 -9 -8 -7 -7 ------- Run | Yrd Mat Min Exi Min Mat Fac Gar Slots Evolved 6 | . . . . . 4 2 . Power 1 | . . . . . 1 . . Propulsion 2 | . . . . . 2 . . Utility 3 | . . . . . 1 2 . Weapon . | . . . . . . . . Parts Attached 72 | 6 13 7 1 . 32 1 12 Power 12 | 1 2 1 . . 7 . 1 Engine 10 | 1 2 1 . . 5 . 1 Core 2 | . . . . . 2 . . Reactor . | . . . . . . . . Propulsion 24 | 2 5 2 . . 12 . 3 Treads 15 | 2 . . . . 10 . 3 Leg 3 | . . 1 . . 2 . . Wheel 6 | . 5 1 . . . . . Hover . | . . . . . . . . Flight . | . . . . . . . . Utility 16 | 1 2 1 . . 5 1 6 Device 8 | . . 1 . . 4 1 2 Storage 2 | 1 1 . . . . . . Processor 1 | . . . . . . . 1 Hackware 1 | . . . . . 1 . . Protection 4 | . 1 . . . . . 3 Artifact . | . . . . . . . . Weapon 20 | 2 4 3 1 . 8 . 2 Energy Gun 8 | 1 . . . . 6 . 1 Energy Cannon 2 | . . . . . 2 . . Ballistic Gun 9 | 1 4 2 1 . . . 1 Ballistic Cannon . | . . . . . . . . Launcher . | . . . . . . . . Special Weapon 1 | . . 1 . . . . . Impact Weapon . | . . . . . . . . Slashing Weapon . | . . . . . . . . Piercing Weapon . | . . . . . . . . Special Melee Weapon . | . . . . . . . . Unidentified Prototypes 3 | . . 1 . . 2 . . Parts Lost 31 | . 4 5 . . 3 . 19 Power 7 | . 1 1 . . 2 . 3 Propulsion 12 | . 1 3 . . 1 . 7 Utility 7 | . 1 . . . . . 6 Weapon 5 | . 1 1 . . . . 3 Highest Loss Streak 11 | . 3 3 . . 2 . 11 To Critical Strikes . | . . . . . . . . Average Backups 7 | 2 5 8 9 9 7 9 7 Power . | . 1 1 2 2 . . . Propulsion . | 1 2 . . . . 1 . Utility 3 | . . 1 2 2 4 6 5 Weapon 2 | . 1 5 5 5 2 2 1 Tool/Special . | . . . . . . . . Unused Backups 16 | . 5 1 1 . 8 . 1 Power 2 | . . . . . 2 . . Propulsion 2 | . 2 . . . . . . Utility 4 | . 1 . . . 2 . 1 Weapon 8 | . 2 1 1 . 4 . . Tool/Special . | . . . . . . . . Average Slot Usage (%) 92 | . 97 98 90 85 96 84 78 Engine 14 | . 14 13 14 14 15 15 13 Treads 20 | . 11 . . . 31 30 22 Leg 3 | . . 2 14 14 3 . . Wheel 6 | . 16 25 14 14 . . . Device 9 | . . 10 14 14 11 7 8 Storage 10 | . 17 17 14 14 9 7 4 Hackware 4 | . . . . . 6 7 7 Protection 1 | . 7 . . . . . 2 Energy Gun 9 | . 3 . . . 14 15 14 Ballistic Gun 8 | . 24 23 18 14 1 . . Peak Build Rating 64 | 6 7 16 30 30 51 64 64 Average Rating 34 | 5 6 13 25 30 41 63 49 On Entrance 24 | . 6 7 16 30 30 46 64 Naked Turns . | . . . . . . . . Heaviest Build 46 | 10 20 20 24 24 46 44 44 Greatest Support 104 | 40 40 20 10 10 104 104 104 Greatest Overweight (x) 3 | 2 . 1 2 2 3 . 1 Average Overweight (x) . | . . . 1 2 . . . Largest Inventory Capacity 10 | 8 10 10 10 10 10 10 10 Average Capacity 9 | 7 8 10 10 10 10 10 8 Most Carried 10 | 5 9 10 9 9 10 10 10 Average Carried 8 | 2 5 8 8 9 9 9 7 Final Capacity 10 | 8 10 10 10 10 10 10 5 Final Carried 10 | 4 8 9 9 9 10 10 4 Class Distribution -------------------- 47% | Mutant 21% | Scavenger-Mutant 21% | Skirmisher 10% | Scavenger-Skirmisher Dominant Class ---------------- Mutant | -10/Materials Mutant | -10/Mines Mutant | -10/Exiles Skirmisher | -9/Mines Scavenger-Mutant | -8/Materials Skirmisher | -7/Factory Skirmisher | -7/Garrison Resources | -11 -10 -10 -10 -9 -8 -7 -7 ----------- Run | Yrd Mat Min Exi Min Mat Fac Gar Matter Collected 1218 | 225 308 100 . 10 396 . 179 Remotely . | . . . . . . . . Salvage Created 2787 | . 411 87 . . 1663 . 626 Parts 168 | . 26 13 . . 104 . 25 Haulers Intercepted 4 | . 2 . . . 2 . . Recyclers Shooed . | . . . . . . . . Parts Field Recycled . | . . . . . . . . Retrieved Matter . | . . . . . . . . Parts Self-Destructed . | . . . . . . . . Prevented . | . . . . . . . . Kills | -11 -10 -10 -10 -9 -8 -7 -7 ------- Run | Yrd Mat Min Exi Min Mat Fac Gar Combat Hostiles Destroyed 70 | . 9 6 . . 41 . 14 Guns 63 | . 9 6 . . 36 . 12 Cannons 4 | . . . . . 4 . . Classes Destroyed 10 | . 5 . . . 3 . 2 Worker 3 | . 1 . . . 2 . . Hauler 4 | . 2 . . . 2 . . Watcher 5 | . 2 . . . 3 . . Swarmer 32 | . 5 6 . . 16 . 5 Grunt 18 | . 4 . . . 13 . 1 Sentry 14 | . . . . . 9 . 5 Specialist 2 | . . . . . 2 . . Hunter 2 | . . . . . . . 2 Heavy 1 | . . . . . 1 . . Behemoth 1 | . . . . . . . 1 Best Kill Streak 12 | . 3 3 . . 12 . 4 Combat Bots Only 11 | . 2 3 . . 11 . 4 Max Kills in Single Turn 2 | . 1 1 . . 2 . 1 Gunslinging . | . . . . . . . . Exploded . | . . . . . . . . Melee . | . . . . . . . . Uniques/NPCs Destroyed . | . . . . . . . . Combat | -11 -10 -10 -10 -9 -8 -7 -7 -------- Run | Yrd Mat Min Exi Min Mat Fac Gar Hostile Shots Fired 779 | . 78 44 . . 182 . 475 Missed 249 | . 22 8 . . 53 . 166 Hits 530 | . 56 36 . . 129 . 309 Projectile 530 | . 56 36 . . 129 . 309 AOE 1 | . . . . . . . 1 Critical Strikes 6 | . 1 . . . 5 . . Actively Blocked 3 | . . . . . 3 . . Damage Taken 6095 | . 636 348 . . 1666 . 3445 Core 1250 | . 111 104 . . 332 . 703 Absorbed by Shields . | . . . . . . . . Regen/Repaired (Parts) 398 | . . . . . 398 . . Core Remaining (%) 51 | 100 . . . 14 39 . . Volleys Fired 210 | . 65 27 . . 54 . 64 Largest 2 | . 2 2 . . 2 . 2 Hottest 160 | . 60 40 . . 160 . 141 Shots Fired 463 | . 130 45 . . 173 . 115 Gun 449 | . 130 45 . . 159 . 115 Cannon 14 | . . . . . 14 . . Launcher . | . . . . . . . . Special . | . . . . . . . . Kinetic 259 | . 126 45 . . 77 . 11 Thermal 204 | . 4 . . . 96 . 104 Explosive . | . . . . . . . . Electromagnetic . | . . . . . . . . Robot Hit Streak 21 | . 8 7 . . 17 . 21 Robot Miss Streak 6 | . 5 3 . . 6 . 4 Penetration Max . | . . . . . . . . Secondary Targets 8 | . 1 3 . . . . 4 Max Gunslinging Chain 1 | . 1 1 . . . . 1 Autonomous 78 | . . . . . 78 . . Shots Hit Robots 325 | . 76 27 . . 129 . 93 Core Hits 148 | . 30 11 . . 69 . 38 Critical Kills 2 | . . . . . 2 . . Critical Parts Destroyed 3 | . 2 . . . 1 . . Critical Strikes 15 | . 2 . . . 7 . 6 Burn 10 | . . . . . 4 . 6 Destroy 5 | . 2 . . . 3 . . Melee Attacks . | . . . . . . . . Impact . | . . . . . . . . Slashing . | . . . . . . . . Piercing . | . . . . . . . . Sneak Attacks . | . . . . . . . . Combat Hostiles . | . . . . . . . . Follow-up Attacks . | . . . . . . . . Damage Inflicted 6455 | . 647 225 . . 3670 . 1913 Guns 6238 | . 641 225 . . 3459 . 1913 Cannons 211 | . . . . . 211 . . Explosions . | . . . . . . . . Melee . | . . . . . . . . Ramming 6 | . 6 . . . . . . Kinetic 3035 | . 618 225 . . 2076 . 116 Thermal 3414 | . 23 . . . 1594 . 1797 Explosive . | . . . . . . . . Electromagnetic . | . . . . . . . . Impact . | . . . . . . . . Slashing . | . . . . . . . . Piercing . | . . . . . . . . Highest Corruption . | . . . . . . . . Average Corruption . | . . . . . . . . Corruption Purged . | . . . . . . . . Corruption Blocked . | . . . . . . . . Overload Shots . | . . . . . . . . Overflow Damage 22 | . . . . . 22 . . Projectiles 22 | . . . . . 22 . . Explosions . | . . . . . . . . Melee . | . . . . . . . . Knockbacks . | . . . . . . . . Impact . | . . . . . . . . Kinetic . | . . . . . . . . Secondary . | . . . . . . . . Self-Inflicted Damage . | . . . . . . . . Shots . | . . . . . . . . Rammed 1 | . 1 . . . . . . Targets Rammed 1 | . 1 . . . . . . Kicked . | . . . . . . . . Crushed . | . . . . . . . . Highest Temperature 502 | . 80 9 . . 482 . 502 Average Temperature 153 | . 20 9 . . 179 . 152 Received Heat Transfer 1512 | . 285 72 . . 414 . 741 Effects 25 | . . . . . 18 . 7 Shutdowns 6 | . . . . . 6 . . Energy Bleed 2 | . . . . . . . 2 Interference 6 | . . . . . 4 . 2 Matter Decay 1 | . . . . . . . 1 Short Circuit 3 | . . . . . 2 . 1 Damage (minor) 3 | . . . . . 2 . 1 Damage (major) 4 | . . . . . 4 . . Siege Activations . | . . . . . . . . Martial Activations . | . . . . . . . . Shielding Activations . | . . . . . . . . Robots Disrupted . | . . . . . . . . Combat Hostiles . | . . . . . . . . Robots Corrupted . | . . . . . . . . Combat Hostiles . | . . . . . . . . Parts Fried . | . . . . . . . . Impact Corruptions . | . . . . . . . . Robots Melted 3 | . . . . . 1 . 2 Combat Hostiles 3 | . . . . . 1 . 2 Parts Melted 18 | . . . . . 8 . 10 Heat Transferred 7519 | . 50 . . . 3649 . 3820 Parts Sabotaged . | . . . . . . . . Parts Stolen . | . . . . . . . . Parts Stripped . | . . . . . . . . Power Chain Reactions . | . . . . . . . . Alert | -11 -10 -10 -10 -9 -8 -7 -7 ------- Run | Yrd Mat Min Exi Min Mat Fac Gar Maximum Alert Level 2 | . . . . . 2 1 . Low Security (%) 54 | 100 100 100 . 100 6 90 100 Level 1 18 | . . . . . 36 9 . Level 2 26 | . . . . . 57 . . Level 3 . | . . . . . . . . Level 4 . | . . . . . . . . Level 5 . | . . . . . . . . High Security . | . . . . . . . . Max Security . | . . . . . . . . Peak Influence 486 | . 66 59 . . 486 211 195 Initial 211 | . . 15 . . . 211 . Average 206 | . 24 17 . . 386 88 92 Influence Increases 1994 | . 294 197 . . 1134 14 355 Destroy 0b10 Robot/C 1440 | . 180 160 . . 820 . 280 Destroy 0b10 Robot/NC 60 | . 25 . . . 35 . . Destroy Leader 288 | . 38 30 . . 210 . 10 Allied During Kill 7 | . . 7 . . . . . Successful Hack 49 | . 21 . . . 14 14 . Anti-Garrison Action 50 | . . . . . . . 50 Destroy Structure 40 | . . . . . 40 . . Lose Combat Pursuer 60 | . 30 . . . 15 . 15 Influence Decreases 1829 | . 253 203 35 . 668 480 190 Entered New Map 316 | . . 26 35 . . 255 . Time Decay 1228 | . 228 137 . . 638 225 . Lost Part 285 | . 25 40 . . 30 . 190 Squads Dispatched 9 | . 2 . . . 7 . . Investigation 3 | . 1 . . . 2 . . Extermination . | . . . . . . . . Reinforcement 6 | . 1 . . . 5 . . Assault . | . . . . . . . . Garrison . | . . . . . . . . Intercept . | . . . . . . . . Searches Triggered . | . . . . . . . . Construction Impeded 1 | . . . . . 1 . . Haulers Reinforced . | . . . . . . . . Active Scanning Responses 1 | . . . . . . . 1 Cargo Convoy Interrupts . | . . . . . . . . Stealth | -11 -10 -10 -10 -9 -8 -7 -7 --------- Run | Yrd Mat Min Exi Min Mat Fac Gar Distress Signals 6 | . 1 . . . 5 . . Communications Jammed . | . . . . . . . . Distress Signals . | . . . . . . . . Times Spotted 98 | . 16 8 . . 53 . 21 Peak Tracking Total 7 | . 3 3 . . 7 . 7 Tactical Retreats 8 | . 2 . . . 5 . 1 Traps | -11 -10 -10 -10 -9 -8 -7 -7 ------- Run | Yrd Mat Min Exi Min Mat Fac Gar Traps Triggered 3 | . 1 . . . 2 . . Indirectly . | . . . . . . . . Trap Hack Attempts . | . . . . . . . . Triggered . | . . . . . . . . Disarmed . | . . . . . . . . Reprogrammed . | . . . . . . . . Reused . | . . . . . . . . Traps Extracted . | . . . . . . . . Installed . | . . . . . . . . Triggered . | . . . . . . . . Machines | -11 -10 -10 -10 -9 -8 -7 -7 ---------- Run | Yrd Mat Min Exi Min Mat Fac Gar Machines Disabled 1 | . . . . . . . 1 Max in Single Turn 1 | . . . . . . . 1 Garrison Relay 1 | . . . . . . . 1 Phase Generator 1 | . . . . . . . 1 Machines Repaired . | . . . . . . . . Machines Dismantled . | . . . . . . . . Machines Sabotaged . | . . . . . . . . Overloaded Fab Kills . | . . . . . . . . Hacking | -11 -10 -10 -10 -9 -8 -7 -7 --------- Run | Yrd Mat Min Exi Min Mat Fac Gar Machines Accessed 18 | . 3 . 5 . 8 2 . Terminals 9 | . 3 . . . 5 1 . Fabricators . | . . . . . . . . Repair Stations 2 | . . . . . 2 . . Recycling Units . | . . . . . . . . Scanalyzers 1 | . . . . . 1 . . Garrison Access 1 | . . . . . . 1 . Total Hacks 105 | . 7 . 50 . 44 4 . Successful 82 | . 3 . 50 . 28 1 . Failed 23 | . 4 . . . 16 3 . Catastrophic 2 | . . . . . 2 . . Database Lockouts . | . . . . . . . . Manual 9 | . 1 . 1 . 7 . . Terminals 30 | . 7 . . . 21 2 . Fabricators . | . . . . . . . . Repair Stations 12 | . . . . . 12 . . Recycling Units . | . . . . . . . . Scanalyzers 11 | . . . . . 11 . . Garrison Access 2 | . . . . . . 2 . Terminal Hacks 64 | . 3 . 50 . 11 . . Record 51 | . 1 . 49 . 1 . . Prototype ID Bank 3 | . 1 . . . 2 . . Branch Access Points 2 | . 1 . . . 1 . . Emergency Access Points 1 | . . . . . 1 . . Alert Level 1 | . . . . . 1 . . Locate Traps 2 | . . . . . 2 . . Investigation Status 1 | . . . . . 1 . . Recall Investigation 1 | . . . . . 1 . . Zone Layout 1 | . . . . . 1 . . Proto ID Catalog 1 | . . . 1 . . . . Fabricator Hacks . | . . . . . . . . Repair Station Hacks 7 | . . . . . 7 . . Scan Component 4 | . . . . . 4 . . Repair 3 | . . . . . 3 . . Recycling Unit Hacks . | . . . . . . . . Scanalyzer 10 | . . . . . 10 . . Insert Component 6 | . . . . . 6 . . Analyze 4 | . . . . . 4 . . Garrison Access Hacks 1 | . . . . . . 1 . Unlock Access 1 | . . . . . . 1 . Unauthorized Hacks . | . . . . . . . . Terminals . | . . . . . . . . Fabricators . | . . . . . . . . Repair Stations . | . . . . . . . . Recycling Units . | . . . . . . . . Scanalyzers . | . . . . . . . . Garrison Access . | . . . . . . . . Data Cores Recovered . | . . . . . . . . Used . | . . . . . . . . Hacking Detections 10 | . 3 . . . 6 1 . Full Trace Events 1 | . . . . . 1 . . Feedback Events . | . . . . . . . . Feedback Blocked . | . . . . . . . . Robot Schematics Acquired . | . . . . . . . . Robots Built . | . . . . . . . . Authchips . | . . . . . . . . Time . | . . . . . . . . Total Robot Build Rating . | . . . . . . . . Part Schematics Acquired 4 | . . . . . 4 . . Parts Built . | . . . . . . . . Authchips . | . . . . . . . . Time . | . . . . . . . . Total Part Build Rating . | . . . . . . . . Parts Repaired 3 | . . . . . 3 . . Time 90 | . . . . . 90 . . Parts Recycled . | . . . . . . . . Recycled Matter . | . . . . . . . . Retrieved Matter . | . . . . . . . . Retrieved Components . | . . . . . . . . Parts Scanalyzed 5 | . . . . . 5 . . Part Schematics Acquired 4 | . . . . . 4 . . Parts Damaged . | . . . . . . . . Bothacking | -11 -10 -10 -10 -9 -8 -7 -7 ------------ Run | Yrd Mat Min Exi Min Mat Fac Gar Used RIF Installer . | . . . . . . . . Robots Hacked . | . . . . . . . . Non-combat . | . . . . . . . . Combat . | . . . . . . . . Robot Hacks Applied . | . . . . . . . . Relay Couplers Released 5 | . . . . . . . 5 Machine Destruction 5 | . . . . . . . 5 Fabnet Peak Effective % . | . . . . . . . . Robots Rewired . | . . . . . . . . Allies Hacked . | . . . . . . . . Hacks Repelled . | . . . . . . . . Allies | -11 -10 -10 -10 -9 -8 -7 -7 -------- Run | Yrd Mat Min Exi Min Mat Fac Gar Total Allies 1 | . . 1 . . . . . Largest Group 1 | . . 1 . . . . . Highest-Rated Group 31 | . . 31 . . . . . Highest-Rated Ally 31 | . . 31 . . . . . Total Orders . | . . . . . . . . Ally Attacks 5 | . . 5 . . . . . Total Damage 85 | . . 85 . . . . . Kills 2 | . . 2 . . . . . Allies Corrupted . | . . . . . . . . Allies Melted . | . . . . . . . . Intel | -11 -10 -10 -10 -9 -8 -7 -7 ------- Run | Yrd Mat Min Exi Min Mat Fac Gar Active Infowar (turns) 2487 | . . 367 591 218 660 592 59 Sensors 1825 | . . 367 591 218 649 . . A.S.S. 651 | . . . . . . 592 59 Jamming 407 | . . . . . 407 . . ECM 250 | . . . . . 250 . . Robot Analysis Total . | . . . . . . . . Derelict Logs Recovered 1 | . . 1 . . . . . Drone Launches . | . . . . . . . . Drone Recoveries . | . . . . . . . . Exploration | -11 -10 -10 -10 -9 -8 -7 -7 ------------- Run | Yrd Mat Min Exi Min Mat Fac Gar Turns Passed 5662 | 116 728 475 591 218 2374 595 565 Spaces Moved 3324 | 66 456 468 564 199 1157 241 173 Core 8 | 7 . . . . . . 1 Treads 1731 | 59 155 . . . 1104 241 172 Legs 15 | . . . . . 15 . . Wheels 1570 | . 301 468 564 199 38 . . Hover . | . . . . . . . . Flight . | . . . . . . . . Fastest Speed 50 | 50 80 80 95 110 110 162 50 Average Speed 129 | 155 107 82 104 110 160 162 163 Slowest Speed 250 | 160 160 95 110 110 250 162 240 Overloaded Moves . | . . . . . . . . Propulsion Burnouts . | . . . . . . . . Robots Hopped . | . . . . . . . . Potential Cave-ins . | . . . . . . . . Cave-ins Triggered . | . . . . . . . . Exploration Rate (%) 49 | 4 89 90 91 40 65 5 14 Regions Visited 7 Branch Regions 3 Pre-discovered Areas 2 | . . 1 1 . . . . Known Exits Taken 2 | . 1 . . . . 1 . Unknown Exits Taken 5 | 1 . 1 1 1 1 . . Scrap Searched 2 | . . 1 . 1 . . . Spaces Dug . | . . . . . . . . Terrain Destroyed 48 | . . . . . 46 . 2 Melee . | . . . . . . . . Projectile 48 | . . . . . 46 . 2 AOE . | . . . . . . . . Terrain Rammed . | . . . . . . . . Walls Destroyed . | . . . . . . . . Machines Disabled . | . . . . . . . . Actions | -11 -10 -10 -10 -9 -8 -7 -7 --------- Run | Yrd Mat Min Exi Min Mat Fac Gar Total 4327 | 77 597 526 568 198 1575 446 340 Wait 557 | . 24 5 . . 244 201 83 Move 3317 | 65 455 467 563 198 1156 240 173 Hop . | . . . . . . . . Pick Up 66 | 4 17 11 . . 30 3 1 Fast Attach 41 | 6 3 . 1 . 26 . 5 Attach 47 | 1 12 8 . . 15 1 10 Detach 23 | 1 8 3 2 . 6 . 3 Swap 1 | . 1 . . . . . . Drop 64 | . 11 5 2 . 44 1 1 Fire 210 | . 65 27 . . 54 . 64 Melee . | . . . . . . . . Ram . | . . . . . . . . Kick . | . . . . . . . . Crush 1 | . 1 . . . . . . Escape Stasis . | . . . . . . . . Rewire . | . . . . . . . . Trap . | . . . . . . . . Miscellaneous . | . . . . . . . . Route ------- -11/Scrapyard -10/Materials (discovered 4 exits: [*Mat x3] / *Min) -10/Mines (discovered 2 exits: [*Mat] / *Exi) -10/Exiles -9/Mines -8/Materials (discovered 2 exits: *Fac x2) -7/Factory -7/Garrison History --------- Turn | Location | Event 18 | -11/Scrapyard | Discovered new exit (range 14) 117 | -11/Scrapyard | Entered Materials 118 | -10/Materials | Met a group of wandering Federalists 278 | -10/Materials | Discovered new exit (range 8) 300 | -10/Materials | Build established: Mutant 339 | -10/Materials | Discovered new exit (range 13) 436 | -10/Materials | Identified exit to Mines 511 | -10/Materials | Discovered new exit (range 7) 639 | -10/Materials | Lost 3 parts (1n1u1w) 639 | -10/Materials | Discovered new exit (range 10) 845 | -10/Materials | Entered Mines 883 | -10/Mines | Core integrity fell below 50% 925 | -10/Mines | Lost 3 parts (1p2n) 946 | -10/Mines | Found a damaged Exp. Sensor Array with a note attached 950 | -10/Mines | Found Prototype Device 953 | -10/Mines | Identified Exp. Sensor Array 962 | -10/Mines | Received a Mining Laser from a helpful Derelict 1174 | -10/Mines | Received a Rocket Launcher from a helpful Derelict 1220 | -10/Mines | Discovered new exit (range 11) 1240 | -10/Mines | Core integrity fell below 20% 1314 | -10/Mines | Deemed a non-threat by the Exiles lab entrance 1314 | -10/Mines | Discovered new exit (range 5) 1320 | -10/Mines | Entered Exiles 1342 | -10/Exiles | Met 8R-AWN 1362 | -10/Exiles | Met EX-HEX 1394 | -10/Exiles | Met EX-BIN 1408 | -10/Exiles | Aligned with FarCom system 1409 | -10/Exiles | Given EX-Vault access code 1435 | -10/Exiles | Opened EX-Vault 1454 | -10/Exiles | Warned to stay clear of 0b10 Research branches 1529 | -10/Exiles | Found AWS/Gauss 1587 | -10/Exiles | Met EX-DEC 1592 | -10/Exiles | Learned location of Zion (-6) 1677 | -10/Exiles | Visited The Gauntlet 1891 | -10/Exiles | Discovered new exit (range 14) 1911 | -10/Exiles | Left Exiles lab with AWS/Gauss 1911 | -10/Exiles | Entered Mines 2040 | -9/Mines | Discovered new exit (range 10) 2129 | -9/Mines | Entered Materials 2129 | -8/Materials | Evolved 4 slots: Power x1, Propulsion x2, Utility x1 2303 | -8/Materials | Destroyed 11 combat bots 2401 | -8/Materials | Found Prototype Device 2501 | -8/Materials | AWS/Gauss suddenly broke down 2588 | -8/Materials | Build established: Scavenger-Skirmisher 3088 | -8/Materials | Build established: Scavenger-Mutant 3146 | -8/Materials | Discovered new exit (range 10) 3220 | -8/Materials | Identified Active Sensor Suite 3335 | -8/Materials | Repaired Arm. Treads 3375 | -8/Materials | Core integrity fell below 50% 3478 | -8/Materials | Repaired Lgt. Treads 3506 | -8/Materials | Repaired Lgt. Treads 3787 | -8/Materials | Discovered new exit (range 16) 4100 | -8/Materials | Build established: Mutant 4503 | -8/Materials | Entered Factory 4503 | -7/Factory | Evolved 2 slots: Utility x2 4545 | -7/Factory | Identified exit to Garrison 4812 | -7/Factory | Build established: Skirmisher 5098 | -7/Factory | Entered Garrison 5219 | -7/Garrison | Garrison Relay disabled 5411 | -7/Garrison | Spotted B-75 Beast 5415 | -7/Garrison | Phase Generator disabled 5453 | -7/Garrison | Destroyed B-75 Beast 5480 | -7/Garrison | Lost 7 parts (1p4n1u1w) 5593 | -7/Garrison | Core integrity fell below 50% 5660 | -7/Garrison | Core integrity fell below 20% 5663 | -7/Garrison | Destroyed by Y-54 Guardian with Flak Gun Last Messages --------------- S-27 Virus suffers critical hit (Burn). S-27 Virus destroyed. Acquired Autogun. Med. Treads destroyed. Lgt. Treads destroyed. S-27 Virus destroyed. VTOL Module melted. S-27 Virus destroyed. Switching to secondary target: Y-54 Guardian. Imp. Heat Sink destroyed. Y-54 Guardian destroyed. Switching to secondary target: Y-54 Guardian. Imp. Light Armor Plating destroyed. Hrd. Medium Armor Plating destroyed. Autogun destroyed. Rnf. Deuterium Engine destroyed. Overheating: System interference. Adv. Beam Rifle temporarily disabled. Adv. Targeting Computer temporarily disabled. Acquired Carbon-fiber Leg. Map ----- +----------------------------------------------------+ | ?????????????????????????????????????????????????? | | ?????????????????????????????????????????????????? | | ?????????????????????????????????????????????????? | | ?????????????????????????????????????????????????? | | ?????????????????????????????????????????????????? | | ?????????????????????????????????????????????????? | | ?????????????????????????????????????????????????? | | ?????????????????????????????????????????????????? | | ?????????????????????????????????????????????????? | | ?????????????????????????????????????????????????? | | ?????????????????????????????????????????????????? | | ?????????????????????????????######??????????????? | | ???????????????????????##????# ??????????????? | | ??????????????????????? ????# ???????????????? | | ???????????????????????# #???# ???????????????? | | ???????????????????????# #???# #????Y??????????? | | ???????????????????????# #???# #???????????????? | | ?????????????????????### ##### #???????????????? | | ?????????????????????#"# ?# [#???????????????? | | ?????????????????????#"! ??#==%#???????????????? | | ?????????????????????#!!!!#??#%[=#???????????????? | | ?????????????????????#"!%Y#??# #???????????????? | | ?????????????????????#"#Yg#??# #???????????????? | | ?????????????????????### =#??# #???????????????? | | ???????????????????????#==#### #???????????????? | | ???????????????????????#[@/%[+% #???????????????? | | ?????????????????????###=%####= #???????????????? | | ??????????????????#### =#??# #???????????????? | | ??????????????????# #??#^^ #???????????????? | | ??????????????????#%## #??# #???????????????? | | ?????????###????### #### #??# #???????????????? | | ?????????# #?### # #??# #### #???????????????? | | ??????????# ## # #### #???????????????? | | ???????????# # ## ! #???????????????? | | ??????????## # ! #######%= #???????????????? | | ??????????# # #????# #???????????????? | | ?????????## % #????# #???????????????? | | ?????????# %%[ # #????# #???????????????? | | ?????????## ###????# #???????????????? | | ?????????#" # #????# #???????????????? | | ?????????## # #????# #???????????????? | | ?????????# #????# #???????????????? | | ?????????## # #????# #???????????????? | | ??????????# # #????# #???????????????? | | ??????????## ## ###????# % #???????????????? | | ???????????## ### ##???### #???????????????? | | ????????????### ### """##### % %#???????????????? | | ??????????????##??# / #???????????????? | | ??????????????????# ######## #???????????????? | | ??????????????????? #??????#######???????????????? | +----------------------------------------------------+ Best States ------------- Heat Dissipation 70 Energy Generation 27 Energy Capacity 480 Matter Stores 300 Matter Capacity 300 Sight Range 16 Robot Scan Range 20 Terrain Scan Density 10 ECM Strength 1 Jamming Range 12 Armor Coverage 375 Evasion (%) 44 Targeting Accuracy 8 Recoil Reduction 4 Defensive Hacking 10 Item Schematics ----------------- Hrd. Medium Armor Plating | -8/Materials | Scanalyzed Imp. Heat Sink | -8/Materials | Scanalyzed Energy Filter | -8/Materials | Scanalyzed ECM Suite | -8/Materials | Scanalyzed Robot Schematics ------------------ None Fabricated ------------ Nothing Repaired ---------- Arm. Treads | 37% | -8/Materials Lgt. Treads | 14% | -8/Materials Lgt. Treads | 35% | -8/Materials Alien Tech Used ----------------- None Achievements -------------- I Spy Challenges ------------ None Game ------ Seed EnhancedRiotInverter Manual? 0 Play Time 01:48:14 Cumulative 19.7 hours Start 2025.05.09 @ 11:52:28 End 2025.05.09 @ 19:03:29 Sessions 1 Manual Loads 0 Difficulty Rogue Special Mode None Game No. 22 Rogue 22 Adventurer 0 Explorer 0 Win Type - Total 0 Types 0/0/0/0/0/0/0/0/0/0 Lore% 12 Gallery% 16 Achievement% 19 Wizard Run 0 Options --------- Layout 1 ASCII 0 Keyboard 0 Movement Mouse Keybinds 0 Fullscreen 2 Font 48/Smallcaps Map View 50x35 Zoom Use 0% Tactical HUD 0 Map Filters NONE Filters NONE Steam 1 RUN: 746d87a1-8a99-4c2e-b622-ba53086128c7